bitfinex-derivatives/quotes_BTCF0:USTF0_20250620
["timestamp","ask_amount","ask_price","bid_price","bid_amount"]
[1750385794395,0.68803893,104810.0,104800.0,1.38005006]
[1750385794781,0.2144513,104810.0,104800.0,1.38005006]
[1750385795391,0.4052551,104810.0,104800.0,0.8634221]
[1750385795591,0.4052551,104810.0,104800.0,1.36418976]
[1750385796298,0.2144513,104810.0,104800.0,1.36418976]
[1750385796597,0.2144513,104810.0,104800.0,1.72498976]
[1750385796892,0.4052552,104810.0,104800.0,1.72498976]
[1750385798598,0.3731552,104810.0,104800.0,1.72498976]
[1750385799001,0.62353903,104810.0,104800.0,0.6470221]
[1750385799301,0.65533903,104810.0,104800.0,1.47536593]
[1750385799499,0.68753903,104810.0,104800.0,1.47536593]
[1750385799896,0.82753903,104810.0,104800.0,1.47536593]
[1750385800101,0.68753903,104810.0,104800.0,1.47536593]
[1750385800803,0.65533903,104810.0,104800.0,1.72574976]
[1750385800997,0.62353903,104810.0,104800.0,1.72574976]
[1750385802202,0.62353903,104810.0,104800.0,1.36494976]
[1750385802203,0.5281618,104810.0,104800.0,1.36494976]
[1750385802407,0.62353903,104810.0,104800.0,1.72574976]
[1750385803906,0.3731552,104810.0,104800.0,1.72574976]
[1750385806506,0.3731552,104810.0,104800.0,1.2249821]
[1750385806707,0.3731552,104810.0,104800.0,1.72574976]
[1750385808597,0.62353903,104810.0,104800.0,1.72574976]
[1750385811606,0.71353903,104810.0,104800.0,1.72574976]
[1750385811907,0.62353903,104810.0,104800.0,1.47536593]
[1750385812508,0.74353903,104810.0,104800.0,1.47536593]
[1750385812712,0.62353903,104810.0,104800.0,1.47536593]
[1750385813108,0.62353903,104810.0,104800.0,1.47704593]
[1750385813609,0.74353903,104810.0,104800.0,1.47704593]
[1750385813809,0.62353903,104810.0,104800.0,1.47704593]
[1750385813999,0.76353903,104810.0,104800.0,0.89740593]
[1750385814201,0.62353903,104810.0,104800.0,1.47696593]
[1750385816306,0.62353903,104810.0,104800.0,1.11616593]
[1750385818214,0.76353903,104810.0,104800.0,1.11616593]
[1750385818512,0.62353903,104810.0,104800.0,1.11616593]
[1750385819313,0.75353903,104810.0,104800.0,1.11616593]
[1750385819508,0.73353903,104810.0,104800.0,1.11616593]
[1750385819716,0.62353903,104810.0,104800.0,1.11616593]
[1750385821217,0.76353903,104810.0,104800.0,1.11616593]
[1750385821400,0.62353903,104810.0,104800.0,1.11616593]
[1750385821606,0.76353903,104810.0,104800.0,1.11616593]
[1750385821806,0.62353903,104810.0,104800.0,1.11616593]
[1750385822713,0.6281618,104810.0,104800.0,1.11616593]
[1750385822914,0.5281618,104810.0,104800.0,1.11616593]
[1750385825417,0.96533645,104810.0,104800.0,1.11616593]
[1750385825713,1.06533645,104810.0,104800.0,0.2862221]
[1750385825920,1.17279018,104810.0,104800.0,0.8016621]
[1750385826210,1.26649018,104810.0,104800.0,0.8016621]
[1750385826815,1.01610635,104810.0,104800.0,0.8016621]
[1750385827011,1.26649018,104810.0,104800.0,0.8016621]
[1750385827512,1.26649018,104810.0,104800.0,0.2226221]
[1750385828710,1.21155917,104810.0,104800.0,0.2226221]
[1750385829619,1.21573324,104810.0,104800.0,0.2226221]
[1750385833321,1.31111047,104810.0,104800.0,0.2226221]
[1750385834010,1.21573324,104810.0,104800.0,0.2226221]
[1750385834212,1.31113702,104810.0,104800.0,0.2226221]
[1750385836519,0.95033702,104810.0,104800.0,0.2226221]
[1750385836721,1.31113702,104810.0,104800.0,0.2226221]
[1750385841821,1.31113702,104810.0,104800.0,0.1908221]
[1750385842520,2.02333702,104810.0,104800.0,0.1908221]
[1750385843113,1.92793324,104810.0,104800.0,0.1908221]
[1750385843314,2.02333702,104810.0,104800.0,0.1908221]
[1750385844023,1.92793324,104810.0,104800.0,0.2216221]
[1750385845424,2.02333702,104810.0,104800.0,0.2216221]
[1750385846326,1.88961702,104810.0,104800.0,0.2216221]
[1750385846827,1.79421324,104810.0,104800.0,0.2216221]
[1750385847431,1.88961702,104810.0,104800.0,0.2216221]
[1750385848438,1.88961702,104810.0,104800.0,0.47200593]
[1750385848730,1.85671702,104810.0,104800.0,0.47200593]
[1750385848932,1.76131324,104810.0,104800.0,0.53390593]
[1750385849437,1.73131324,104810.0,104800.0,0.53390593]
[1750385851539,1.82671702,104810.0,104800.0,0.53390593]
[1750385852538,1.73131324,104810.0,104800.0,0.53390593]
[1750385853638,1.82671702,104810.0,104800.0,0.53390593]
[1750385863149,1.57633319,104810.0,104800.0,0.53390593]
[1750385863349,1.82671702,104810.0,104800.0,0.53390593]
[1750385863539,1.82671702,104810.0,104800.0,0.2835221]
[1750385864449,1.73131324,104810.0,104800.0,0.53390593]
[1750385866152,1.73131324,104810.0,104800.0,0.47200593]
[1750385866352,1.79731324,104810.0,104800.0,0.2216221]
[1750385868448,1.54692941,104810.0,104800.0,0.2216221]
[1750385868649,1.79731324,104810.0,104800.0,0.2216221]
[1750385877966,1.76441324,104810.0,104800.0,0.0308]
[1750385878167,1.76441324,104810.0,104800.0,0.1908221]
[1750385878168,1.98583024,104810.0,104800.0,0.1908221]
[1750385878361,2.08123402,104810.0,104800.0,0.1908221]
[1750385880266,0.1908221,104800.0,104790.0,0.67892923]
[1750385880566,0.96410593,104800.0,104790.0,0.67892923]
[1750385880761,1.09410593,104800.0,104790.0,0.67892923]
[1750385881564,1.09410593,104800.0,104790.0,0.67992923]
[1750385881962,0.8437221,104800.0,104790.0,0.67992923]
[1750385882162,0.96410593,104800.0,104790.0,0.67992923]
[1750385882370,1.18950971,104800.0,104790.0,0.67992923]
[1750385882570,1.18950971,104800.0,104790.0,0.68092923]
[1750385883967,1.18950971,104800.0,104790.0,0.67892923]
[1750385884163,1.19150971,104800.0,104790.0,0.67892923]
[1750385884670,1.20150971,104800.0,104790.0,0.67892923]
[1750385884870,0.91112588,104800.0,104790.0,0.67892923]
[1750385885071,1.06150971,104800.0,104790.0,0.67892923]
[1750385885369,1.18150971,104800.0,104790.0,0.67892923]
[1750385885565,1.19568378,104800.0,104790.0,0.67892923]
[1750385885771,1.06568378,104800.0,104790.0,0.67892923]
[1750385886467,1.08028,104800.0,104790.0,0.67892923]
[1750385886771,0.97028,104800.0,104790.0,0.67892923]
[1750385888067,1.06568378,104800.0,104790.0,0.67892923]
[1750385889770,1.03358378,104800.0,104790.0,0.4285454]
[1750385889966,1.16358378,104800.0,104790.0,0.67892923]
[1750385890170,1.03358378,104800.0,104790.0,0.67892923]
[1750385890378,0.93818,104800.0,104790.0,0.67892923]
[1750385891486,1.05818,104800.0,104790.0,0.67892923]
[1750385891671,1.03818,104800.0,104790.0,0.67892923]
[1750385891872,0.93818,104800.0,104790.0,0.67892923]
[1750385892175,1.06818,104800.0,104790.0,0.67892923]
[1750385892380,1.01452685,104800.0,104790.0,0.67892923]
[1750385893981,1.14452685,104800.0,104790.0,0.67892923]
[1750385894183,1.01452685,104800.0,104790.0,0.67892923]
[1750385896183,1.15452685,104800.0,104790.0,0.67892923]
[1750385896382,0.93818,104800.0,104790.0,0.67892923]
[1750385896777,1.01452783,104800.0,104790.0,0.67892923]
[1750385897386,1.01452783,104800.0,104790.0,0.4285454]
[1750385897588,1.01452783,104800.0,104790.0,0.67892923]
[1750385898184,0.65372783,104800.0,104790.0,0.67892923]
[1750385899073,0.75372783,104800.0,104790.0,0.67892923]
[1750385899280,0.65372783,104800.0,104790.0,0.67892923]
[1750385900187,0.79372783,104800.0,104790.0,0.67892923]
[1750385900385,0.65372783,104800.0,104790.0,0.67892923]
[1750385900681,0.57738,104800.0,104790.0,0.67892923]
[1750385901292,0.67738,104800.0,104790.0,0.67892923]
[1750385901488,0.57738,104800.0,104790.0,0.67892923]
[1750385901782,0.66738,104800.0,104790.0,0.67892923]
[1750385901981,1.01453359,104800.0,104790.0,0.67892923]
[1750385902179,1.12453359,104800.0,104790.0,0.67892923]
[1750385902484,1.01453359,104800.0,104790.0,0.67892923]
[1750385906187,0.75373359,104800.0,104790.0,0.67892923]
[1750385906387,0.65373359,104800.0,104790.0,0.67892923]
[1750385906684,0.65373359,104800.0,104790.0,0.4285454]
[1750385906988,0.65373359,104800.0,104790.0,0.67892923]
[1750385908386,0.77373359,104800.0,104790.0,0.67892923]
[1750385908592,0.65373359,104800.0,104790.0,0.67892923]
[1750385914889,0.51334976,104800.0,104790.0,0.67892923]
[1750385915195,0.21252766,104800.0,104790.0,1.03972923]
[1750385915596,0.21292766,104800.0,104790.0,1.03972923]
[1750385915789,0.13657407,104800.0,104790.0,1.03972923]
[1750385916395,0.21292766,104800.0,104790.0,1.29011306]
[1750385916594,0.13617407,104800.0,104790.0,1.03972923]
[1750385916793,0.00657407,104800.0,104790.0,1.03972923]
[1750385918297,0.00657407,104800.0,104790.0,1.17248923]
[1750385918492,0.08292766,104800.0,104790.0,1.17248923]
[1750385918798,0.08192766,104800.0,104790.0,1.17348923]
[1750385919497,0.08092766,104800.0,104790.0,1.17348923]
[1750385919689,0.08092766,104800.0,104790.0,1.17448923]
[1750385920697,0.00457407,104800.0,104790.0,1.17448923]
[1750385920894,0.08092766,104800.0,104790.0,1.17448923]
[1750385927694,0.08092766,104800.0,104790.0,0.81368923]
[1750385927898,0.08092766,104800.0,104790.0,1.42487306]
[1750385928598,0.08052766,104800.0,104790.0,1.42487306]
[1750385929605,0.08092766,104800.0,104790.0,1.42487306]
[1750385929800,0.08052766,104800.0,104790.0,1.42487306]
[1750385929999,0.08092766,104800.0,104790.0,1.42487306]
[1750385932301,0.00457407,104800.0,104790.0,1.42487306]
[1750385933601,0.00457407,104800.0,104790.0,1.06407306]
[1750385933801,0.00457407,104800.0,104790.0,1.42487306]
[1750385935810,1.10901785,104820.0,104810.0,0.1908039]
[1750385936010,1.38856246,104820.0,104810.0,0.44118773]
[1750385936306,1.52211486,104820.0,104810.0,0.44118773]
[1750385937507,1.52411486,104820.0,104810.0,0.44118773]
[1750385938007,1.52511486,104820.0,104810.0,0.44118773]
[1750385939504,1.77549869,104820.0,104810.0,0.44118773]
[1750385939802,1.78519347,104820.0,104810.0,0.44118773]
[1750385940503,1.61126612,104820.0,104810.0,0.44118773]
[1750385943810,1.50616756,104820.0,104810.0,0.44118773]
[1750385944008,1.60157134,104820.0,104810.0,0.47258773]
[1750385944309,1.61110446,104820.0,104810.0,0.47258773]
[1750385944505,1.61527853,104820.0,104810.0,0.47258773]
[1750385947414,1.61527853,104820.0,104810.0,0.4632794]
[1750385949209,1.61527853,104820.0,104810.0,0.4942794]
[1750385950818,1.86566236,104820.0,104810.0,0.18149557]
[1750385951906,1.73347391,104820.0,104810.0,0.19734607]
[1750385952215,1.78117481,104820.0,104810.0,0.19734607]
[1750385952516,1.78117481,104820.0,104810.0,0.18149557]
[1750385952711,1.42037481,104820.0,104810.0,0.18149557]
[1750385952912,1.78117481,104820.0,104810.0,0.18149557]
[1750385954110,1.68577103,104820.0,104810.0,0.21449557]
[1750385955212,1.74997103,104820.0,104810.0,0.21449557]
[1750385958915,1.71737103,104820.0,104810.0,0.4648794]
[1750385959116,1.71737103,104820.0,104810.0,0.5283794]
[1750385959519,2.29469103,104820.0,104810.0,0.5283794]
[1750385961215,1.93389103,104820.0,104810.0,0.5283794]
[1750385961419,2.29469103,104820.0,104810.0,0.5283794]
[1750385962222,2.29469103,104820.0,104810.0,0.27799557]
[1750385962422,2.29469103,104820.0,104810.0,0.5283794]
[1750385962721,1.79392337,104820.0,104810.0,0.5283794]
[1750385962922,1.42585408,104820.0,104810.0,0.5283794]
[1750385963123,2.13585408,104820.0,104810.0,0.5283794]
[1750385964420,2.38623791,104820.0,104810.0,0.5283794]
[1750385964920,2.25351791,104820.0,104810.0,0.5283794]
[1750385965323,2.00313408,104820.0,104810.0,0.5283794]
[1750385965723,2.01274658,104820.0,104810.0,0.5283794]
[1750385965924,2.26313041,104820.0,104810.0,0.5283794]
[1750385967027,2.39585041,104820.0,104810.0,0.5283794]
[1750385967220,2.26313041,104820.0,104810.0,0.5283794]
[1750385969126,2.01274658,104820.0,104810.0,0.5283794]
[1750385969321,2.26313041,104820.0,104810.0,0.5283794]
[1750385970026,2.25351791,104820.0,104810.0,0.5283794]
[1750385971823,1.89271791,104820.0,104810.0,0.5283794]
[1750385972026,2.25351791,104820.0,104810.0,0.5283794]
[1750385972529,2.34892169,104820.0,104810.0,0.5283794]
[1750385972826,2.09853786,104820.0,104810.0,0.5283794]
[1750385973226,2.34892169,104820.0,104810.0,0.5283794]
[1750385973837,1.77164169,104820.0,104810.0,0.5283794]
[1750385974129,2.35871498,104820.0,104810.0,0.5283794]
[1750385976130,2.2633112,104820.0,104810.0,0.5283794]
[1750385978430,2.2633112,104820.0,104810.0,0.27799557]
[1750385978832,2.25351791,104820.0,104810.0,0.27799557]
[1750385979033,2.34896947,104820.0,104810.0,0.27799557]
[1750385979234,2.09858564,104820.0,104810.0,0.5283794]
[1750385979734,2.00313408,104820.0,104810.0,0.5283794]
[1750385981325,2.25351791,104820.0,104810.0,0.27799557]
[1750385981525,2.27034572,104820.0,104810.0,0.27799557]
[1750385985129,1.90954572,104820.0,104810.0,0.27799557]
[1750385985436,2.36579728,104820.0,104810.0,0.27799557]
[1750385987934,2.39749728,104820.0,104810.0,0.27799557]
[1750385989039,1.39580859,104820.0,104810.0,0.27799557]
[1750385989241,2.47930469,104820.0,104810.0,0.27799557]
[1750385990636,2.22892086,104820.0,104810.0,0.27799557]
[1750385990841,2.47930469,104820.0,104810.0,0.27799557]
[1750385991640,2.11850469,104820.0,104810.0,0.27799557]
[1750385991840,2.47930469,104820.0,104810.0,0.27799557]
[1750385992741,2.11850469,104820.0,104810.0,0.27799557]
[1750385992943,2.47930469,104820.0,104810.0,0.27799557]
[1750385994042,1.76942469,104820.0,104810.0,0.27799557]
[1750385994341,2.47930469,104820.0,104810.0,0.27799557]
[1750385995144,2.11850469,104820.0,104810.0,0.27799557]
[1750385995334,2.47930469,104820.0,104810.0,0.27799557]
[1750385996441,2.47930469,104820.0,104810.0,0.5283794]
[1750385997438,2.47930469,104820.0,104810.0,0.27799557]
[1750385997632,1.97853703,104820.0,104810.0,0.27799557]
[1750385997839,2.47930469,104820.0,104810.0,0.5283794]
[1750385998340,2.34662469,104820.0,104810.0,0.5283794]
[1750385998539,2.34662469,104820.0,104810.0,0.27799557]
[1750385998743,2.34662469,104820.0,104810.0,0.5283794]
[1750385999142,2.47926469,104820.0,104810.0,0.5283794]
[1750385999641,2.22888086,104820.0,104810.0,0.5283794]
[1750385999840,2.09620086,104820.0,104810.0,0.5283794]
[1750386000236,1.65719508,104820.0,104810.0,0.5283794]
[1750386000437,0.43308653,104820.0,104810.0,0.5283794]
[1750386000641,0.21363055,104820.0,104810.0,0.77876323]
[1750386000835,0.16039248,104820.0,104810.0,0.5283794]
[1750386001036,0.15999248,104820.0,104810.0,0.5283794]
[1750386001934,0.15939248,104820.0,104810.0,0.8891794]
[1750386002137,0.083936,104820.0,104810.0,0.8891794]
[1750386002442,0.082936,104820.0,104810.0,0.8891794]
[1750386002643,0.082936,104820.0,104810.0,1.4663394]
[1750386003244,0.082936,104820.0,104810.0,1.5989394]
[1750386005033,0.082536,104820.0,104810.0,1.5989394]
[1750386005242,0.082936,104820.0,104810.0,1.5989394]
[1750386005746,0.00657407,104820.0,104810.0,1.5989394]
[1750386010755,0.00657407,104820.0,104810.0,1.84928323]
[1750386011050,0.06334889,104820.0,104810.0,1.84928323]
[1750386011448,0.06374889,104820.0,104810.0,1.84928323]
[1750386012156,0.06234889,104820.0,104810.0,2.22128323]
[1750386012450,0.00557407,104820.0,104810.0,1.85128323]
[1750386012641,0.00557407,104820.0,104810.0,2.22128323]
[1750386012846,0.00557407,104820.0,104810.0,2.25946996]
[1750386013155,0.00457407,104820.0,104810.0,2.30246996]
[1750386014151,0.07636193,104830.0,104820.0,0.69155336]
[1750386014352,0.07636193,104830.0,104820.0,1.14625336]
[1750386015353,0.07676193,104830.0,104820.0,1.14625336]
[1750386015555,0.07676193,104830.0,104820.0,1.14725336]
[1750386016654,0.07676193,104830.0,104820.0,1.14825336]
[1750386017757,0.07676193,104830.0,104820.0,1.85789336]
[1750386017953,0.07676193,104830.0,104820.0,1.14825336]
[1750386018556,0.07676193,104830.0,104820.0,1.85789336]
[1750386019462,0.0004,104830.0,104820.0,1.85789336]
[1750386019652,0.00457407,104830.0,104820.0,1.85789336]
[1750386022458,0.06166008,104830.0,104820.0,1.85789336]
[1750386027654,0.06166008,104830.0,104820.0,1.85785336]
[1750386034270,0.68446898,104840.0,104830.0,0.20621134]
[1750386034470,0.82446898,104840.0,104830.0,0.84969517]
[1750386035473,0.82546898,104840.0,104830.0,0.87999517]
[1750386036366,0.82646898,104840.0,104830.0,0.87999517]
[1750386036874,0.90283091,104840.0,104830.0,0.87999517]
[1750386037873,1.18726898,104840.0,104830.0,0.51919517]
[1750386038074,1.22006898,104840.0,104830.0,0.51919517]
[1750386038270,1.61312657,104840.0,104830.0,0.01544374]
[1750386038474,0.3338522,104830.0,104820.0,0.1907858]
[1750386038773,1.43980569,104830.0,104820.0,0.7677458]
[1750386038977,1.44397976,104830.0,104820.0,0.7677458]
[1750386039677,1.44397976,104830.0,104820.0,0.1907858]
[1750386039976,1.44397976,104830.0,104820.0,0.7697458]
[1750386040277,1.44397976,104830.0,104820.0,0.1927858]
[1750386040877,1.44497976,104830.0,104820.0,0.1907858]
[1750386041079,1.44697976,104830.0,104820.0,0.1907858]
[1750386041274,0.1907857,104820.0,104810.0,0.3648882]
[1750386041481,1.2214949,104820.0,104810.0,0.9108482]
[1750386041779,1.36424949,104820.0,104810.0,1.16123203]
[1750386042175,1.36424949,104820.0,104810.0,0.9108482]
[1750386042974,1.36524949,104820.0,104810.0,1.16123203]
[1750386044488,1.36724949,104820.0,104810.0,1.16123203]
[1750386045384,1.36724949,104820.0,104810.0,1.19243203]
[1750386045891,1.36724949,104820.0,104810.0,0.61547203]
[1750386046080,1.36724949,104820.0,104810.0,1.14617213]
[1750386046281,1.39832044,104820.0,104810.0,1.14617213]
[1750386047191,1.14793661,104820.0,104810.0,1.14617213]
[1750386047389,1.39832044,104820.0,104810.0,1.14617213]
[1750386047685,1.24672044,104820.0,104810.0,1.14617213]
[1750386047882,0.96473661,104820.0,104810.0,1.17787213]
[1750386048191,0.93366566,104820.0,104810.0,1.17787213]
[1750386048682,0.93366566,104820.0,104810.0,0.9274883]
[1750386048885,0.93366566,104820.0,104810.0,1.17787213]
[1750386049388,1.18404949,104820.0,104810.0,1.17787213]
[1750386050090,1.18822356,104820.0,104810.0,1.20967213]
[1750386050988,1.18822356,104820.0,104810.0,0.3808883]
[1750386051196,1.32822356,104820.0,104810.0,1.17831213]
[1750386051399,1.32822356,104820.0,104810.0,0.3490883]
[1750386051584,1.25199819,104820.0,104810.0,0.9279283]
[1750386051893,1.25199819,104820.0,104810.0,1.17831213]
[1750386055502,1.25199819,104820.0,104810.0,1.20901213]
[1750386059394,1.32822356,104820.0,104810.0,1.20901213]
[1750386060495,1.07783973,104820.0,104810.0,1.20901213]
[1750386060695,1.11199819,104820.0,104810.0,1.20901213]
[1750386061193,1.18822356,104820.0,104810.0,1.20901213]
[1750386061496,1.25812356,104820.0,104810.0,1.20901213]
[1750386061991,1.15812356,104820.0,104810.0,1.20901213]
[1750386062195,1.28812356,104820.0,104810.0,1.20901213]
[1750386062394,1.19189819,104820.0,104810.0,1.20901213]
[1750386062697,1.08189819,104820.0,104810.0,1.20901213]
[1750386062891,1.19189819,104820.0,104810.0,1.20901213]
[1750386063286,1.08189819,104820.0,104810.0,1.20901213]
[1750386063492,1.21189819,104820.0,104810.0,1.20901213]
[1750386065398,1.30734975,104820.0,104810.0,1.20901213]
[1750386065593,1.21189819,104820.0,104810.0,0.63017213]
[1750386065798,1.21189819,104820.0,104810.0,1.20845213]
[1750386066290,1.30734975,104820.0,104810.0,1.20845213]
[1750386067600,1.30734975,104820.0,104810.0,0.63017213]
[1750386070402,1.30734975,104820.0,104810.0,0.3797883]
[1750386070602,2.13573358,104820.0,104810.0,0.0936]
[1750386070998,2.04028202,104820.0,104810.0,0.0936]
[1750386071402,2.16864027,104820.0,104810.0,0.2844039]
[1750386072503,2.20634202,104820.0,104810.0,0.2844039]
[1750386073203,2.20634202,104820.0,104810.0,0.0936]
[1750386073404,1.70557436,104820.0,104810.0,0.0936]
[1750386073599,2.20634202,104820.0,104810.0,0.0936]
[1750386074706,1.92305819,104820.0,104810.0,0.53478773]
[1750386075102,1.54003436,104820.0,104810.0,0.53478773]
[1750386075315,1.79041819,104820.0,104810.0,0.53478773]
[1750386075511,0.96151436,104820.0,104810.0,0.53478773]
[1750386075809,1.79037819,104820.0,104810.0,0.53478773]
[1750386076110,1.53999436,104820.0,104810.0,0.53478773]
[1750386076317,0.96151436,104820.0,104810.0,0.53478773]
[1750386076503,0.21352605,104820.0,104810.0,1.14597156]
[1750386076812,0.40471185,104820.0,104810.0,1.72477156]
[1750386077008,0.21392605,104820.0,104810.0,1.47438773]
[1750386077712,0.27471175,104820.0,104810.0,1.47438773]
[1750386077914,0.27271175,104820.0,104810.0,1.47538773]
[1750386078212,0.27171175,104820.0,104810.0,1.47638773]
[1750386078811,0.08092605,104820.0,104810.0,1.47638773]
[1750386079008,0.08092605,104820.0,104810.0,1.72677156]
[1750386079210,0.08052605,104820.0,104810.0,1.72677156]
[1750386079513,0.08092605,104820.0,104810.0,1.47638773]
[1750386080011,0.08092605,104820.0,104810.0,1.72677156]
[1750386080212,0.08092605,104820.0,104810.0,1.47638773]
[1750386080911,0.00457407,104820.0,104810.0,2.05074756]
[1750386081212,0.00417407,104820.0,104810.0,2.05074756]
[1750386081414,0.00457407,104820.0,104810.0,2.05074756]
[1750386081807,0.06178278,104820.0,104810.0,2.05074756]
[1750386082407,0.00457407,104820.0,104810.0,2.05074756]
[1750386082610,0.00417407,104820.0,104810.0,2.34544756]
[1750386082819,0.00457407,104820.0,104810.0,2.34544756]
[1750386083512,0.00457407,104820.0,104810.0,2.42065962]
[1750386084313,0.00457407,104820.0,104810.0,2.42061962]
[1750386085018,0.00457407,104820.0,104810.0,2.22980362]
[1750386086611,0.06173486,104820.0,104810.0,2.22980362]
[1750386087712,0.4457437,104820.0,104810.0,1.61845979]
[1750386087914,0.4457437,104820.0,104810.0,1.32367979]
[1750386088217,0.8065437,104820.0,104810.0,1.32367979]
[1750386088518,0.55615987,104820.0,104810.0,1.32367979]
[1750386088919,0.55615987,104820.0,104810.0,1.32375124]
[1750386089308,0.55715987,104820.0,104810.0,1.32275124]
[1750386089921,0.68815987,104820.0,104810.0,1.32175124]
[1750386090220,0.55815987,104820.0,104810.0,1.32187124]
[1750386091319,0.19735987,104820.0,104810.0,1.32187124]
[1750386092515,0.00657407,104820.0,104810.0,1.32187124]
[1750386093925,0.19735977,104820.0,104810.0,1.32187124]
[1750386099230,0.00657407,104820.0,104810.0,1.32187124]
[1750386099419,0.19735977,104820.0,104810.0,1.32187124]
[1750386103728,0.00657407,104820.0,104810.0,1.32187124]
[1750386105534,0.19735977,104820.0,104810.0,1.32187124]
[1750386108838,0.19735977,104820.0,104810.0,1.3218593]
[1750386109134,0.55815977,104820.0,104810.0,1.3218593]
[1750386109836,0.63451175,104820.0,104810.0,1.3218593]
[1750386110238,0.19735977,104820.0,104810.0,1.3218593]
[1750386110536,0.27371175,104820.0,104810.0,1.3218593]
[1750386113145,0.19735977,104820.0,104810.0,1.3218593]
[1750386116638,0.55815977,104820.0,104810.0,1.3218593]
[1750386117042,0.19735977,104820.0,104810.0,1.3218593]
[1750386117940,0.27371612,104820.0,104810.0,1.3218593]
[1750386121439,0.41371612,104820.0,104810.0,1.3218593]
[1750386121644,0.27371612,104820.0,104810.0,1.3218593]
[1750386123044,0.08293042,104820.0,104810.0,1.3218593]
[1750386123446,0.00657407,104820.0,104810.0,1.6826593]
[1750386123643,0.00617407,104820.0,104810.0,1.6826593]
[1750386123837,0.00657407,104820.0,104810.0,1.6826593]
[1750386125149,0.19735987,104820.0,104810.0,1.6826593]
[1750386126147,0.00657407,104820.0,104810.0,1.6826593]
[1750386127749,0.08293042,104820.0,104810.0,1.6826593]
[1750386129241,0.00657407,104820.0,104810.0,1.6826593]
[1750386130553,0.19735987,104820.0,104810.0,1.3218593]
[1750386130849,0.00657407,104820.0,104810.0,1.6826593]
[1750386131042,0.19735987,104820.0,104810.0,1.3218593]
[1750386131238,0.00657407,104820.0,104810.0,1.6826593]
[1750386131750,0.00657407,104820.0,104810.0,1.3218593]
[1750386131950,0.00657407,104820.0,104810.0,1.3208193]
[1750386132447,0.19735977,104820.0,104810.0,1.3208193]
[1750386132649,0.29735977,104820.0,104810.0,1.3208193]
[1750386132848,0.19735977,104820.0,104810.0,1.3208193]
[1750386133441,0.00657407,104820.0,104810.0,1.3208193]
[1750386134155,0.13657407,104820.0,104810.0,1.3208193]
[1750386134351,0.00657407,104820.0,104810.0,1.3208193]
[1750386134653,0.19735987,104820.0,104810.0,1.3208193]
[1750386135048,0.31735987,104820.0,104810.0,1.3208193]
[1750386135253,0.19735987,104820.0,104810.0,1.3208193]
[1750386136449,1.18904655,104820.0,104810.0,0.2844039]
[1750386136655,1.11495956,104820.0,104810.0,1.11296724]
[1750386143060,1.11495956,104820.0,104810.0,1.11272724]
[1750386143262,1.11495956,104820.0,104810.0,0.8622839]
[1750386143460,1.11495956,104820.0,104810.0,1.11272724]
[1750386143861,1.14615956,104820.0,104810.0,1.11272724]
[1750386145656,1.11495956,104820.0,104810.0,1.11272724]
[1750386145864,0.75415956,104820.0,104810.0,1.11272724]
[1750386146063,0.37371622,104820.0,104810.0,1.11272724]
[1750386146756,0.73411622,104820.0,104810.0,1.11272724]
[1750386146959,0.73451622,104820.0,104810.0,1.11272724]
[1750386147163,0.73411622,104820.0,104810.0,1.11272724]
[1750386147364,0.73451622,104820.0,104810.0,1.11272724]
[1750386147558,0.85451622,104820.0,104810.0,1.11272724]
[1750386147760,0.73451622,104820.0,104810.0,1.11272724]
[1750386147956,0.18293042,104820.0,104810.0,1.11272724]
[1750386148152,0.37331622,104820.0,104810.0,1.11272724]
[1750386148359,0.37371622,104820.0,104810.0,1.11272724]
[1750386152368,0.29735987,104820.0,104810.0,1.11272724]
[1750386152669,0.43735987,104820.0,104810.0,1.11272724]
[1750386152869,0.65815987,104820.0,104810.0,1.11272724]
[1750386154275,0.90860321,104820.0,104810.0,1.11272724]
[1750386154577,0.9848762,104820.0,104810.0,1.11272724]
[1750386155771,0.90860321,104820.0,104810.0,1.11272724]
[1750386155971,1.00860321,104820.0,104810.0,1.11272724]
[1750386156168,0.90860321,104820.0,104810.0,1.11272724]
[1750386158569,1.00860321,104820.0,104810.0,1.11272724]
[1750386158774,0.90860321,104820.0,104810.0,1.11272724]
[1750386159877,1.04860321,104820.0,104810.0,1.11272724]
[1750386160078,0.90860321,104820.0,104810.0,1.11272724]
[1750386160375,0.54780321,104820.0,104810.0,1.11272724]
[1750386160570,0.90860321,104820.0,104810.0,1.11272724]
[1750386160879,0.54780321,104820.0,104810.0,1.11272724]
[1750386162481,0.98490572,104820.0,104810.0,1.11272724]
[1750386163279,0.08287658,104820.0,104810.0,1.47352724]
[1750386163583,0.08287658,104820.0,104810.0,1.11272724]
[1750386164282,0.08287658,104820.0,104810.0,1.47352724]
[1750386164683,0.08287658,104820.0,104810.0,1.11372724]
[1750386164684,0.08187658,104820.0,104810.0,1.11372724]
[1750386165070,0.08087658,104820.0,104810.0,1.11472724]
[1750386165275,0.08087658,104820.0,104810.0,1.47552724]
[1750386167781,0.27166238,104820.0,104810.0,1.11472724]
[1750386171688,0.08087658,104820.0,104810.0,1.11472724]
[1750386171887,0.27166228,104820.0,104810.0,1.11472724]
[1750386175494,0.08087658,104820.0,104810.0,1.11472724]
[1750386175693,0.19535987,104820.0,104810.0,1.11472724]
[1750386178192,0.19535987,104820.0,104810.0,1.24768724]
[1750386178493,0.55615987,104820.0,104810.0,1.24768724]
[1750386179593,0.19535987,104820.0,104810.0,1.24768724]
[1750386180695,0.55615987,104820.0,104810.0,1.24768724]
[1750386181990,0.00457407,104820.0,104810.0,1.24768724]
[1750386183293,0.00457407,104820.0,104810.0,1.60848724]
[1750386185398,0.00457407,104820.0,104810.0,1.24768724]
[1750386185587,0.08087658,104820.0,104810.0,1.24768724]
[1750386190406,0.44167658,104820.0,104810.0,1.24768724]
[1750386190603,0.08087658,104820.0,104810.0,0.53684724]
[1750386190804,0.08087658,104820.0,104810.0,1.11464724]
[1750386191305,0.27166238,104820.0,104810.0,1.11464724]
[1750386191805,0.63246238,104820.0,104810.0,1.11464724]
[1750386192003,0.27166238,104820.0,104810.0,1.11464724]
[1750386192904,0.08087658,104820.0,104810.0,1.11464724]
[1750386194900,0.08087658,104820.0,104810.0,1.47544724]
[1750386195096,0.08087658,104820.0,104810.0,1.11464724]
[1750386195708,0.27166238,104820.0,104810.0,1.11464724]
[1750386196303,0.08087658,104820.0,104810.0,1.11464724]
[1750386197306,0.27166238,104820.0,104810.0,1.11464724]
[1750386197700,0.37166238,104820.0,104810.0,1.11464724]
[1750386198007,1.01290572,104820.0,104810.0,1.11456724]
[1750386198401,1.04580572,104820.0,104810.0,1.11456724]
[1750386198905,1.04580572,104820.0,104810.0,1.11356724]
[1750386199205,1.04780572,104820.0,104810.0,1.11256724]
[1750386202410,0.97150321,104820.0,104810.0,1.11256724]
[1750386207519,1.10150321,104820.0,104810.0,1.11256724]
[1750386208718,0.74070321,104820.0,104810.0,1.11256724]
[1750386208919,1.10150321,104820.0,104810.0,1.11256724]
[1750386210216,1.17784507,104820.0,104810.0,0.53484724]
[1750386210427,1.17784507,104820.0,104810.0,1.11256724]
[1750386214714,1.17784507,104820.0,104810.0,0.53484724]
[1750386214916,1.17784507,104820.0,104810.0,1.11232724]